bitfinex-derivatives/quotes_ETHF0:USTF0_20250309
["timestamp","ask_amount","ask_price","bid_price","bid_amount"]
[1741540580055,2.43258,2055.8,2055.4,3.2078]
[1741540580257,2.43241,2056.0,2055.4,3.2078]
[1741540580258,0.97312,2055.7,2055.4,3.2078]
[1741540580456,0.97314,2055.6,2055.4,4.18098]
[1741540580651,2.43234,2056.0,2055.4,3.2078]
[1741540581163,0.97309,2055.7,2055.4,3.2078]
[1741540581359,0.97309,2055.7,2055.5,0.97317]
[1741540581760,0.97312,2055.6,2055.4,4.18098]
[1741540581958,5.0947,2056.1,2055.4,3.2078]
[1741540582158,7.52697,2056.1,2055.6,0.97308]
[1741540582461,3.2078,2055.9,2055.5,0.97314]
[1741540582650,0.9731,2055.7,2055.5,0.97313]
[1741540582853,7.52697,2056.1,2055.4,3.2078]
[1741540583058,0.97317,2055.5,2055.4,3.2078]
[1741540583563,0.97317,2055.5,2055.4,4.18102]
[1741540583870,0.97317,2055.5,2055.4,3.2078]
[1741540584457,0.97335,2055.2,2055.1,3.2078]
[1741540585060,2.43273,2055.7,2055.2,0.97329]
[1741540585261,0.97319,2055.5,2055.4,0.97322]
[1741540585462,0.97319,2055.5,2055.1,3.2078]
[1741540585856,8.72411,2055.8,2055.3,0.97323]
[1741540586058,11.93191,2055.8,2055.3,0.97323]
[1741540586259,0.97326,2055.3,2055.2,0.9733]
[1741540586459,2.43274,2055.7,2055.2,0.97328]
[1741540586661,0.97331,2055.2,2055.1,3.2078]
[1741540586861,8.4091,2055.9,2055.1,5.64119]
[1741540587066,8.4091,2055.9,2055.5,0.97314]
[1741540587368,0.97312,2055.6,2055.5,0.97314]
[1741540587556,0.97312,2055.6,2055.4,3.2078]
[1741540587557,8.4091,2055.9,2055.4,3.2078]
[1741540587757,2.43213,2056.2,2055.7,0.97305]
[1741540588061,15.07786,2056.3,2055.4,5.64081]
[1741540588261,0.97302,2055.9,2055.7,0.97306]
[1741540588566,0.97303,2055.8,2055.7,0.97304]
[1741540588768,2.43215,2056.2,2055.4,3.2078]
[1741540588966,0.97303,2055.8,2055.7,0.97306]
[1741540589161,0.97303,2055.8,2055.6,0.97309]
[1741540589470,2.43238,2056.0,2055.4,3.2078]
[1741540589661,3.2078,2056.0,2055.4,3.2078]
[1741540589860,0.97304,2055.8,2055.6,0.97309]
[1741540590060,15.8536,2056.3,2055.4,3.2078]
[1741540590262,0.97301,2055.9,2055.7,0.97306]
[1741540590464,9.6245,2056.3,2055.4,3.2078]
[1741540590768,0.97295,2056.0,2055.9,0.97298]
[1741540590970,0.97292,2056.1,2055.9,0.97296]
[1741540591162,6.4167,2056.3,2055.9,0.97294]
[1741540591465,0.97293,2056.0,2055.7,3.2078]
[1741540591764,0.97301,2055.9,2055.7,4.18086]
[1741540591968,0.97296,2056.0,2055.8,0.97301]
[1741540592663,0.97298,2056.0,2055.8,0.97301]
[1741540592863,8.84874,2056.3,2055.8,0.97301]
[1741540593166,12.05654,2056.3,2055.8,0.97301]
[1741540593362,12.05654,2056.3,2055.7,3.2078]
[1741540593363,9.6245,2056.3,2055.7,3.2078]
[1741540593562,0.9729,2056.1,2055.7,3.2078]
[1741540593768,3.2078,2056.3,2055.7,3.2078]
[1741540593957,2.4321,2056.2,2055.7,3.2078]
[1741540594360,0.973,2055.9,2055.7,4.18085]
[1741540594573,0.97296,2056.0,2055.8,0.97301]
[1741540594871,5.6397,2056.4,2055.8,0.97301]
[1741540594872,2.43198,2056.3,2055.8,0.97301]
[1741540595073,5.6397,2056.4,2055.7,3.2078]
[1741540595571,2.43198,2056.3,2055.7,3.2078]
[1741540595870,0.97299,2055.9,2055.7,4.18084]
[1741540596174,0.97298,2055.9,2055.8,0.97301]
[1741540596472,2.43198,2056.3,2055.8,0.97302]
[1741540596674,0.97298,2056.0,2055.8,0.97302]
[1741540596869,0.97298,2055.9,2055.8,0.97302]
[1741540597168,0.97298,2055.9,2055.7,3.2078]
[1741540597369,2.43198,2056.3,2055.7,3.2078]
[1741540597576,0.97303,2055.8,2055.7,3.2078]
[1741540597973,0.973,2055.9,2055.7,4.18085]
[1741540598374,2.4321,2056.2,2055.7,3.2078]
[1741540598573,2.4321,2056.2,2055.7,4.18087]
[1741540598574,0.97302,2055.9,2055.7,4.18087]
[1741540598873,5.63967,2056.4,2055.7,3.2078]
[1741540599070,0.97293,2056.1,2055.9,0.97297]
[1741540599273,0.97295,2056.0,2055.7,3.2078]
[1741540599471,2.43198,2056.3,2055.7,3.2078]
[1741540599875,0.97301,2055.9,2055.7,4.18087]
[1741540600071,0.97303,2055.8,2055.7,3.2078]
[1741540600274,0.97302,2055.9,2055.7,4.18086]
[1741540600477,0.97303,2055.8,2055.7,3.2078]
[1741540600874,0.97312,2055.6,2055.5,11.2861]
[1741540601373,0.97309,2055.7,2055.5,11.2861]
[1741540601579,2.43246,2055.9,2055.3,3.2078]
[1741540601876,0.9732,2055.5,2055.3,4.18104]
[1741540602076,2.43262,2055.8,2055.3,4.18104]
[1741540602380,0.97317,2055.6,2055.4,0.97321]
[1741540602579,6.1967,2055.9,2055.3,3.2078]
[1741540602770,0.97309,2055.7,2055.5,0.97314]
[1741540602972,0.97316,2055.6,2055.3,3.2078]
[1741540603170,6.6033,2056.3,2055.3,3.2078]
[1741540603373,6.6033,2056.3,2055.9,0.97298]
[1741540603670,0.97307,2055.7,2055.6,3.2078]
[1741540604279,5.64011,2056.1,2055.4,0.9732]
[1741540604476,0.97318,2055.5,2055.3,4.18105]
[1741540604782,0.97311,2055.7,2055.3,3.2078]
[1741540604971,0.97306,2055.8,2055.6,0.97311]
[1741540605278,5.0881,2056.0,2055.4,2.43294]
[1741540605482,0.97299,2055.9,2055.7,0.97304]
[1741540605876,3.2078,2056.1,2055.6,3.2078]
[1741540606079,0.97294,2056.0,2055.8,0.973]
[1741540606280,3.2078,2056.1,2055.6,3.2078]
[1741540606580,0.97293,2056.0,2055.8,0.97302]
[1741540606782,0.97298,2055.9,2055.8,0.97302]
[1741540607179,0.97298,2055.9,2055.6,3.2078]
[1741540607382,3.2078,2056.1,2055.6,3.2078]
[1741540607383,0.97307,2055.7,2055.6,3.2078]
[1741540607879,0.97322,2055.4,2055.3,3.2078]
[1741540608079,2.43261,2055.8,2055.3,3.2078]
[1741540608390,0.97322,2055.4,2055.3,3.2078]
[1741540608676,3.2078,2055.8,2055.1,4.8998]
[1741540608982,0.97336,2055.1,2055.0,3.21510869]
[1741540609277,5.64091,2055.4,2055.1,0.97333]
[1741540609278,3.2078,2055.4,2055.1,0.97333]
[1741540609583,0.97336,2055.1,2055.0,0.00730869]
[1741540609980,3.2078,2055.4,2055.0,0.00730869]
[1741540610176,0.97336,2055.1,2055.0,0.00730869]
[1741540610877,0.97374,2054.3,2054.2,9.5419]
[1741540611078,0.97374,2054.3,2054.2,3.2078]
[1741540611277,0.97379,2054.2,2054.1,18.5595203]
[1741540611481,0.9739,2054.0,2053.8,5.0084]
[1741540611687,0.97387,2054.1,2053.8,5.98236]
[1741540611988,0.97387,2054.1,2053.8,5.0084]
[1741540612282,0.00730869,2054.2,2053.7,10.40108869]
[1741540612484,0.97396,2053.9,2053.7,9.42710869]
[1741540612790,0.97397,2053.8,2053.7,3.21510869]
[1741540612985,0.97397,2053.8,2053.7,0.00730869]
[1741540613182,4.0,2053.8,2053.4,18.5595203]
[1741540613489,0.97412,2053.5,2053.4,18.5595203]
[1741540613677,5.1622,2053.8,2053.4,18.5595203]
[1741540613882,3.334,2054.1,2053.4,21.7673203]
[1741540614082,3.334,2054.1,2053.6,0.97404]
[1741540614282,3.334,2054.1,2053.4,21.7673203]
[1741540614283,0.97409,2053.6,2053.4,4.18196]
[1741540614683,0.97409,2053.6,2053.4,3.2078]
[1741540614884,0.97409,2053.6,2053.4,4.18196]
[1741540615289,2.44181869,2054.2,2053.4,3.2078]
[1741540615588,3.34030869,2054.2,2053.4,3.2078]
[1741540615794,3.2078,2054.0,2053.4,3.2078]
[1741540615989,0.97412,2053.5,2053.4,3.2078]
[1741540616494,0.97416,2053.4,2053.3,0.00730869]
[1741540616892,4.18196,2053.4,2053.3,0.00730869]
[1741540617193,2.43561,2053.3,2052.5,25.0458]
[1741540617390,3.333,2053.2,2052.5,3.2078]
[1741540617594,0.97454,2052.6,2052.5,3.2078]
[1741540618092,3.2078,2053.0,2052.5,3.2078]
[1741540618292,0.00730869,2052.8,2052.5,3.2078]
[1741540618489,0.00730869,2052.8,2052.6,0.97451]
[1741540618693,0.98175869,2052.8,2052.5,3.2078]
[1741540618892,0.00730869,2052.8,2052.5,3.2078]
[1741540619100,0.00730869,2052.8,2052.6,0.97452]
[1741540619590,0.00730869,2052.8,2052.7,0.9745]
[1741540619996,3.2078,2053.9,2053.4,0.97414]
[1741540620202,0.97398,2053.8,2053.6,0.97405]
[1741540620397,0.974,2053.8,2053.6,3.2078]
[1741540620593,14.7351,2054.2,2053.0,5.76883]
[1741540620594,0.97409,2053.6,2053.3,4.18198]
[1741540620789,0.97395,2053.9,2053.3,3.2078]
[1741540621095,0.00730869,2053.8,2053.3,3.2078]
[1741540621394,0.97407,2053.6,2053.4,0.98145869]
[1741540621797,0.97412,2053.5,2053.4,0.00730869]
[1741540622192,0.97409,2053.6,2053.4,0.98145869]
[1741540622391,0.00730869,2053.8,2053.4,0.00730869]
[1741540622595,0.97412,2053.5,2053.4,0.00730869]
[1741540622794,0.9744,2052.9,2052.8,21.85]
[1741540622995,0.97445,2052.8,2052.7,3.2078]
[1741540623898,2.43585,2053.1,2052.4,0.97464]
[1741540624094,0.97448,2052.8,2052.5,3.21510869]
[1741540624296,0.00730869,2053.0,2052.5,3.21510869]
[1741540624695,0.97442,2052.9,2052.7,0.97447]
[1741540624994,0.97454,2052.6,2052.5,3.21510869]
[1741540625199,2.44322869,2053.0,2052.5,3.21510869]
[1741540625387,0.97454,2052.6,2052.5,3.21510869]
[1741540625591,0.97454,2052.6,2052.5,0.00730869]
[1741540625890,0.97482,2052.1,2051.9,25.0598]
[1741540626101,0.97475,2052.2,2051.9,26.03467]
[1741540626298,6.7226,2052.8,2052.2,0.97471]
[1741540626492,0.97464,2052.4,2052.2,0.97471]
[1741540626690,0.9746,2052.5,2052.3,0.97466]
[1741540626893,9.15874,2052.8,2052.2,3.2078]
[1741540627093,8.3039,2052.9,2052.2,3.21510869]
[1741540627293,0.00730869,2053.0,2052.5,5.64425]
[1741540627493,0.00730869,2053.0,2052.8,3.2078]
[1741540627691,0.00730869,2053.0,2052.9,0.9744]
[1741540627901,0.98168869,2053.0,2052.8,3.2078]
[1741540628100,0.97445,2052.8,2052.7,3.331]
[1741540628304,0.00730869,2053.0,2052.5,3.2078]
[1741540628305,2.43608,2052.9,2052.5,3.2078]
[1741540628503,0.97454,2052.6,2052.5,3.2078]
[1741540628697,3.2078,2052.9,2052.2,6.54610869]
[1741540629093,0.00730869,2053.0,2052.5,3.2078]
[1741540629298,0.97454,2052.6,2052.5,3.2078]
[1741540629697,0.97465,2052.4,2052.2,7.52080869]
[1741540629899,0.97469,2052.3,2052.2,3.21510869]
[1741540630403,0.97464,2052.5,2052.2,3.21510869]
[1741540630604,0.00730869,2053.0,2052.2,3.21510869]
[1741540630793,0.97469,2052.3,2052.2,3.21510869]
[1741540630994,0.97469,2052.3,2052.2,0.00730869]
[1741540632200,0.97469,2052.3,2051.9,3.2078]
[1741540632201,0.97483,2052.0,2051.9,3.2078]
[1741540632608,2.43683,2052.3,2051.7,11.3737]
[1741540632806,0.97492,2051.8,2051.7,11.3737]
[1741540633000,0.97497,2051.7,2051.6,3.2078]
[1741540633202,3.2078,2052.1,2051.6,3.2078]
[1741540633504,1.4146731,2056.7,2051.6,3.2078]
[1741540633505,8.69e-06,2051.9,2051.8,0.97492]
[1741540633709,8.69e-06,2051.9,2051.8,4.18272]
[1741540633908,8.69e-06,2051.9,2051.8,8.18272]
[1741540634302,3.2078,2053.1,2051.8,7.2078]
[1741540634511,11.4241,2053.3,2052.6,3.2078]
[1741540635010,6.1928,2053.7,2052.9,3.2078]
[1741540635217,3.328,2053.8,2053.2,3.2078]
[1741540635412,0.97421,2053.3,2053.2,3.2078]
[1741540635604,0.97426,2053.2,2053.1,0.00730869]
[1741540636103,4.0,2053.2,2052.4,3.2078]
[1741540636298,0.97459,2052.6,2052.4,3.2078]
[1741540636809,0.97459,2052.5,2052.4,3.2078]
[1741540637003,0.97464,2052.5,2052.2,0.97472]
[1741540637198,3.2078,2052.8,2052.2,0.00730869]
[1741540637408,0.97469,2052.3,2052.2,0.00730869]
[1741540638105,0.97492,2051.8,2051.7,3.2078]
[1741540638315,0.97507,2051.5,2051.4,3.2078]
[1741540638616,4.8622,2052.0,2051.4,3.2078]
[1741540639005,0.97488,2051.9,2051.4,3.2078]
[1741540639207,4.8622,2052.0,2051.4,3.2078]
[1741540639208,4.8622,2052.0,2051.5,0.9799425]
[1741540639407,4.8622,2052.0,2051.5,0.9799225]
[1741540639611,0.97502,2051.6,2051.5,0.0048725]
[1741540640118,0.97502,2051.6,2050.4,24.816]
[1741540640119,0.9752,2051.3,2051.0,0.9753]
[1741540640320,5.64544,2051.6,2050.9,3.2078]
[1741540640321,4.18285,2051.6,2050.9,3.2078]
[1741540640506,0.97512,2051.4,2051.2,3.2078]
[1741540640713,0.97516,2051.3,2051.2,3.2078]
[1741540640916,0.97514,2051.4,2051.2,3.2078]
[1741540641420,0.00730869,2051.5,2051.2,3.2078]
[1741540641614,0.00730869,2051.5,2051.4,0.97511]
[1741540641807,6.502,2052.3,2051.3,15.3793]
[1741540642009,6.502,2052.3,2051.6,3.2078]
[1741540642219,0.97486,2052.0,2051.7,0.97493]
[1741540642407,3.2078,2052.1,2051.6,3.2078]
[1741540642611,2.43708,2052.0,2051.3,5.3663]
[1741540642909,0.97502,2051.6,2051.5,8.69e-06]
[1741540643218,0.97545,2050.7,2050.6,3.2078]
[1741540643515,0.97545,2050.7,2049.9,3.814]
[1741540643516,0.97559,2050.4,2050.3,3.2078]
[1741540643710,0.97559,2050.4,2049.7,3.2078]
[1741540643711,0.97588,2049.8,2049.7,3.2078]
[1741540644113,0.97616,2049.2,2049.1,3.2078]
[1741540644421,3.2078,2049.8,2049.1,3.2078]
[1741540644617,0.97626,2049.0,2048.9,18.5595203]
[1741540644920,3.325,2049.4,2048.9,18.5595203]
[1741540645322,3.2078,2050.1,2049.1,3.2078]
[1741540645523,0.97597,2049.7,2049.5,3.2078]
[1741540645827,3.2078,2050.1,2049.3,3.2078]
[1741540646320,0.97588,2049.8,2049.5,0.97599]
[1741540646521,3.2078,2050.1,2049.3,3.2078]
[1741540646827,0.97594,2049.7,2049.4,0.97603]
[1741540647018,3.2078,2049.8,2049.6,0.97595]
[1741540647214,0.00730869,2050.0,2049.3,3.2078]
[1741540647417,0.00730869,2050.0,2049.6,3.2078]
[1741540647612,3.325,2050.6,2049.9,3.2078]
[1741540647820,2.985,2050.9,2049.9,3.2078]
[1741540648025,0.97554,2050.6,2049.9,3.2078]
[1741540648226,0.97554,2050.6,2050.3,0.97563]
[1741540648427,3.2078,2050.7,2049.9,3.2078]
[1741540648727,14.2936,2051.1,2050.3,2.4391]
[1741540648912,0.97537,2050.9,2050.6,0.97548]
[1741540649217,0.00730869,2050.9,2050.5,3.2078]
[1741540649426,2.43863,2050.7,2049.7,3.2078]
[1741540649615,0.97577,2050.1,2049.7,3.2078]
[1741540649815,0.97577,2050.1,2049.8,0.97588]
[1741540650022,3.2078,2050.4,2049.7,3.2078]
[1741540650224,2.985,2050.7,2049.7,3.2078]
[1741540650431,0.97561,2050.4,2050.0,3.2078]
[1741540650625,20.6036,2050.8,2050.0,3.2078]
[1741540650820,3.2078,2050.8,2050.0,3.2078]
[1741540651029,0.00730869,2050.9,2050.3,3.2078]
[1741540651334,0.00730869,2050.9,2050.8,0.9754]
[1741540651524,0.00730869,2050.9,2050.6,3.2078]
[1741540651826,0.00730869,2050.9,2050.6,3.21510869]
[1741540652028,0.97545,2050.7,2050.6,0.00730869]
[1741540652430,0.00730869,2050.9,2050.6,0.00730869]
[1741540652623,0.97543,2050.8,2050.6,0.00730869]
[1741540652823,0.00730869,2050.9,2050.8,0.9754]
[1741540653027,0.00730869,2050.9,2050.7,3.2078]
[1741540653028,0.00730869,2050.9,2050.7,4.18322]
[1741540653429,0.00730869,2050.9,2050.8,0.9754]
[1741540654330,14.7936,2051.6,2050.7,3.2078]
[1741540654331,18.1176,2051.6,2050.7,3.2078]
[1741540654524,18.1176,2051.6,2051.0,0.97529]
[1741540654525,0.9752,2051.3,2051.0,0.97529]
[1741540655225,0.9754,2050.8,2050.7,3.2078]
[1741540655423,3.2078,2051.3,2050.7,3.2078]
[1741540655623,0.97526,2051.1,2050.7,3.2078]
[1741540655835,3.2078,2051.3,2050.7,4.18322]
[1741540656035,2.43803,2051.2,2050.7,3.2078]
[1741540656230,0.9754,2050.8,2050.7,3.2078]
[1741540656431,3.323,2051.1,2050.7,3.2078]
[1741540656833,0.9754,2050.8,2050.7,3.2078]
[1741540657331,3.2078,2051.3,2050.7,3.2078]
[1741540657537,0.9754,2050.8,2050.7,3.2078]
[1741540658236,5.76021,2051.1,2050.7,3.2078]
[1741540658237,3.322,2051.1,2050.7,3.2078]
[1741540658438,0.97535,2050.9,2050.7,3.2078]
[1741540658743,0.9754,2050.8,2050.7,3.2078]
[1741540658944,3.322,2051.1,2050.7,3.2078]
[1741540659135,0.9754,2050.8,2050.7,3.2078]
[1741540659435,0.98243869,2051.4,2051.3,0.97516]
[1741540659637,0.00730869,2051.4,2051.1,3.2078]
[1741540659839,0.98244869,2051.4,2051.2,0.97517]
[1741540660033,0.00730869,2051.4,2051.1,3.2078]
[1741540660234,0.97521,2051.2,2051.1,3.2078]
[1741540660435,0.00730869,2051.4,2051.1,3.2078]
[1741540660739,0.97521,2051.2,2051.1,3.2078]
[1741540660939,0.00730869,2051.4,2051.1,4.18306]
[1741540661134,0.97519,2051.3,2051.1,3.2078]
[1741540661446,0.97521,2051.2,2051.1,3.2078]
[1741540661937,0.9753,2051.0,2050.9,6.0579]
[1741540662142,0.97535,2050.9,2050.8,3.2078]
[1741540662943,0.97545,2050.7,2050.6,0.00730869]
[1741540663139,4.18325,2050.7,2050.6,0.00730869]
[1741540663534,3.2078,2050.7,2050.6,0.00730869]
[1741540663736,4.9905,2050.9,2050.6,0.98278869]
[1741540663943,0.97545,2050.7,2050.6,0.00730869]
[1741540666144,6.689,2051.0,2050.6,0.00730869]
[1741540666350,3.2078,2051.2,2050.7,3.2078]
[1741540666548,0.97527,2051.1,2051.0,0.9753]
[1741540666847,0.97538,2050.9,2050.7,3.2078]
[1741540667149,3.2078,2051.2,2050.8,0.97538]
[1741540667150,0.97534,2051.0,2050.8,0.97538]
[1741540667349,3.2078,2051.2,2050.8,0.97538]
[1741540667551,3.2078,2051.2,2050.7,3.2078]
[1741540667850,0.9754,2050.8,2050.7,3.2078]
[1741540668051,0.97545,2050.7,2050.6,6.16240869]
[1741540668744,0.97545,2050.7,2050.6,0.00730869]
[1741540670347,4.29344,2050.8,2050.6,0.98277869]
[1741540670549,3.318,2050.8,2050.7,0.97545]
[1741540670750,0.97545,2050.7,2050.6,4.19057869]
[1741540670946,3.318,2050.8,2050.6,4.19057869]
[1741540670947,6.6224,2051.1,2050.7,0.97545]
[1741540671147,2.985,2051.6,2050.9,3.2078]
[1741540671148,0.00730869,2051.4,2050.9,3.2078]
[1741540671451,0.98245869,2051.4,2051.2,0.97519]
[1741540671953,0.00730869,2051.4,2051.3,0.97516]
[1741540672350,3.317,2052.1,2051.4,2.43779]
[1741540672550,5.1916,2052.4,2051.9,3.2078]
[1741540672854,5.75343,2052.6,2051.9,3.2078]
[1741540673146,0.97483,2052.0,2051.9,3.2078]
[1741540673347,0.97496,2051.8,2051.6,3.2078]
[1741540673544,3.2078,2052.1,2051.7,0.00730869]
[1741540673750,0.00730869,2052.2,2051.7,0.00730869]
[1741540673949,0.97492,2051.8,2051.7,0.00730869]
[1741540674256,0.97489,2051.9,2051.7,0.98226869]
[1741540674548,4.18272,2051.8,2051.7,0.00730869]
[1741540674747,3.316,2052.1,2051.7,0.00730869]
[1741540675048,0.97492,2051.8,2051.7,0.00730869]
[1741540676148,4.18272,2051.8,2051.7,0.00730869]
[1741540676352,8.18272,2051.8,2051.7,0.00730869]
[1741540676847,8.18272,2051.8,2051.7,8.69e-06]
[1741540677757,11.16772,2051.8,2051.7,8.69e-06]
[1741540678658,2.43837,2051.0,2050.3,9.7638]
[1741540678954,0.97559,2050.4,2050.3,9.7638]
[1741540679154,3.2078,2050.9,2050.3,9.7638]
[1741540679550,0.97559,2050.4,2050.3,9.7638]
[1741540679750,2.43869,2050.7,2050.4,0.00730869]
[1741540679951,0.97554,2050.5,2050.4,0.00730869]
[1741540680949,0.98272869,2050.8,2050.4,0.00730869]
[1741540681155,0.00730869,2050.8,2050.5,0.97554]
[1741540681350,0.00730869,2050.8,2050.4,0.00730869]
[1741540681351,0.97554,2050.5,2050.4,0.00730869]
[1741540681551,4.18334,2050.5,2050.4,0.00730869]
[1741540681751,0.9758,2050.0,2049.8,7.53186]
[1741540681947,5.64676,2050.5,2049.8,6.556]
[1741540681948,3.2078,2050.5,2049.8,6.556]
[1741540682153,3.312,2050.6,2050.0,3.2078]
[1741540682453,3.312,2050.6,2049.8,6.556]
[1741540682454,0.97583,2049.9,2049.8,6.556]
[1741540682659,0.97588,2049.8,2049.7,3.2078]
[1741540682854,0.97597,2049.6,2049.5,4.8649]
[1741540683056,3.312,2050.1,2049.5,4.87220869]
[1741540683260,0.97597,2049.6,2049.5,4.87220869]
[1741540683462,0.00730869,2050.0,2049.5,4.87220869]
[1741540683661,0.97597,2049.6,2049.5,4.87220869]
[1741540683958,0.97597,2049.6,2049.5,0.00730869]
[1741540683959,4.18377,2049.6,2049.5,0.00730869]
[1741540684459,3.2078,2049.6,2048.9,25.0928]
[1741540684656,2.44017,2049.4,2048.7,11.6842]
[1741540684854,0.97635,2048.8,2048.7,6.4346]
[1741540685251,3.2078,2049.0,2048.3,3.2078]
[1741540685456,0.97643,2048.7,2048.4,0.97652]
[1741540685658,0.00730869,2048.9,2048.3,3.2078]
[1741540686459,0.00730869,2048.9,2048.6,3.2078]
[1741540686758,0.00730869,2048.9,2048.8,0.97635]
[1741540686961,0.00730869,2048.9,2048.6,3.2078]
[1741540687260,3.311,2049.7,2048.7,2.44101]
[1741540687559,3.2078,2049.3,2048.8,3.2078]
[1741540687762,0.97645,2048.6,2048.5,3.2078]
[1741540688154,0.97645,2048.6,2048.2,12.66081]
[1741540688155,0.97645,2048.6,2048.3,0.97658]
[1741540688361,0.00730869,2048.8,2048.3,0.00730869]
[1741540688663,0.00730869,2048.8,2048.7,0.9764]
[1741540688861,0.00730869,2048.8,2048.5,3.2078]
[1741540689065,0.97652,2048.5,2048.3,0.00730869]
[1741540689369,0.00730869,2048.8,2048.3,0.00730869]
[1741540689664,0.00730869,2048.8,2048.6,0.97645]
[1741540689858,0.00730869,2048.8,2048.7,0.9764]
[1741540690063,0.00730869,2048.8,2048.5,3.2078]
[1741540690453,0.97645,2048.6,2048.5,3.2078]
[1741540690854,0.97654,2048.4,2048.3,0.00730869]
[1741540691867,3.31,2048.7,2048.3,0.00730869]
[1741540692870,0.97654,2048.4,2048.3,0.00730869]
[1741540694769,0.00730869,2048.8,2048.3,4.00730869]
[1741540694968,0.00730869,2048.8,2048.7,0.9764]
[1741540695167,0.98365869,2048.8,2048.6,3.2078]
[1741540695466,0.9764,2048.7,2048.6,3.2078]
[1741540695668,0.00730869,2048.8,2048.6,4.18423]
[1741540695862,0.00730869,2048.8,2048.6,3.2078]
[1741540696058,3.2078,2049.7,2048.6,9.64888]
[1741540696262,3.2078,2049.7,2048.9,3.2078]
[1741540696459,0.97616,2049.3,2049.0,0.97624]
[1741540696665,0.97605,2049.5,2049.2,4.18393]
[1741540696864,0.97607,2049.4,2049.2,4.18393]
[1741540697067,0.97607,2049.4,2049.2,3.2078]
[1741540697068,0.97609,2049.4,2049.2,3.2078]
[1741540697368,0.00730869,2049.5,2049.4,0.97607]
[1741540697765,3.2078,2050.0,2049.2,3.2078]
[1741540697963,3.2078,2050.0,2049.3,3.2078]
[1741540698164,0.97607,2049.4,2049.3,3.2078]
[1741540698466,5.6477,2049.7,2049.2,0.00730869]
[1741540698661,0.97611,2049.3,2049.2,0.00730869]
[1741540698869,2.44720869,2049.7,2049.2,0.00730869]
[1741540699070,0.00730869,2049.7,2049.2,0.00730869]
[1741540699267,0.00730869,2049.7,2049.6,3.2078]
[1741540699572,0.98322869,2049.7,2049.6,3.2078]
[1741540700071,0.98322869,2049.7,2049.6,4.18377]
[1741540700072,0.00730869,2049.7,2049.6,4.18377]
[1741540700763,0.00730869,2049.7,2049.6,8.18377]
[1741540700962,11.8916,2050.4,2049.6,7.2078]
[1741540701167,0.97574,2050.1,2049.9,3.2078]
[1741540701367,3.2078,2050.4,2049.9,3.2078]
[1741540701562,0.97578,2050.0,2049.9,3.2078]
[1741540701762,3.2078,2050.4,2049.9,3.2078]
[1741540702167,0.00730869,2050.4,2049.9,3.2078]
[1741540702374,0.97578,2050.0,2049.9,4.18361]
[1741540702570,0.00730869,2050.4,2049.9,4.18361]
[1741540702571,0.00730869,2050.4,2049.9,3.2078]
[1741540702769,0.97583,2049.9,2049.8,6.4492]
[1741540705665,3.2078,2050.1,2049.5,3.2078]
[1741540705970,0.97597,2049.6,2049.5,3.2078]
[1741540706975,9.3003,2050.1,2049.5,3.2078]
[1741540707173,0.97597,2049.6,2049.5,3.2078]
[1741540708070,5.0674,2050.3,2049.5,7.2078]
[1741540708275,0.00730869,2050.4,2049.8,3.2078]
[1741540708469,3.2078,2050.3,2049.5,3.2078]
[1741540708670,5.6469,2050.3,2049.5,3.2078]
[1741540708866,0.00730869,2050.4,2049.8,3.2078]
[1741540709173,0.97569,2050.2,2050.1,3.2078]
[1741540709565,0.97585,2049.9,2049.7,3.2078]
[1741540709772,0.97586,2049.9,2049.7,4.18372]
[1741540709972,0.00730869,2050.4,2049.7,3.2078]
[1741540710172,0.97579,2050.0,2049.8,0.97588]
[1741540710474,0.97579,2050.0,2049.8,0.97585]
[1741540710475,0.97581,2050.0,2049.8,0.97585]
[1741540710678,0.97588,2049.8,2049.7,3.2078]
[1741540710978,0.97583,2049.9,2049.7,4.1837]
[1741540711273,0.97583,2049.9,2049.8,0.97588]
[1741540711478,0.97581,2050.0,2049.7,3.2078]
[1741540711679,0.97588,2049.8,2049.7,3.2078]
[1741540711978,2.43932,2050.2,2049.7,4.18372]
[1741540712378,0.97588,2049.8,2049.7,3.2078]
[1741540712871,0.97588,2049.8,2049.2,0.98343869]
[1741540712872,0.97611,2049.3,2049.2,0.00730869]
[1741540713379,0.97645,2048.6,2048.5,3.2078]
[1741540713774,3.2078,2048.8,2048.5,3.2078]
[1741540713992,0.97645,2048.6,2048.5,3.2078]
[1741540714378,0.97643,2048.7,2048.5,3.2078]
[1741540714779,0.97645,2048.6,2048.5,3.2078]
[1741540714979,0.97641,2048.7,2048.5,3.2078]
[1741540715281,0.97645,2048.6,2048.5,3.2078]
[1741540715480,0.97643,2048.7,2048.5,3.2078]
[1741540715779,0.97645,2048.6,2048.5,3.2078]
[1741540715968,0.97654,2048.4,2048.3,0.00730869]
[1741540716780,0.97654,2048.4,2048.3,8.69e-06]
[1741540718078,3.301,2048.6,2048.3,8.69e-06]
[1741540718285,14.55070869,2048.8,2048.3,8.69e-06]
[1741540718487,0.97654,2048.4,2048.3,8.69e-06]
[1741540719383,4.18434,2048.4,2048.3,8.69e-06]
[1741540719571,8.18434,2048.4,2048.3,8.69e-06]
[1741540719773,4.18434,2048.4,2048.3,8.69e-06]
[1741540720684,8.18434,2048.4,2048.3,8.69e-06]
[1741540720880,11.16934,2048.4,2048.3,8.69e-06]
[1741540721986,7.16934,2048.4,2048.3,8.69e-06]
[1741540722285,0.97654,2048.4,2048.3,8.69e-06]
[1741540723084,4.27649,2048.6,2048.3,8.69e-06]
[1741540723286,3.3,2048.6,2048.3,3.20780869]
[1741540723678,0.97653,2048.5,2048.3,3.20780869]
[1741540723984,0.97654,2048.5,2048.3,3.20780869]